bitfinex-derivatives/quotes_BTCF0:USTF0_20251109
["timestamp","ask_amount","ask_price","bid_price","bid_amount"]
[1762723327418,0.03928857,104740.0,104730.0,0.56559814]
[1762723328021,0.10804511,104740.0,104730.0,0.56559814]
[1762723329021,0.13063778,104740.0,104730.0,0.56559814]
[1762723332025,0.06188124,104740.0,104730.0,0.56559814]
[1762723332324,0.07484124,104740.0,104730.0,0.56559814]
[1762723336814,0.17033754,104740.0,104730.0,0.56559824]
[1762723337019,0.07484124,104740.0,104730.0,0.56559824]
[1762723338126,0.14359778,104740.0,104730.0,0.56559824]
[1762723340423,0.14359778,104740.0,104730.0,0.92639824]
[1762723341924,0.13063778,104740.0,104730.0,0.92639824]
[1762723342534,0.01617857,104740.0,104730.0,0.92639824]
[1762723342829,0.001,104740.0,104730.0,0.92639824]
[1762723343035,0.06973206,104740.0,104730.0,0.92639824]
[1762723343334,0.001,104740.0,104730.0,0.92639824]
[1762723343536,0.001,104740.0,104730.0,0.85034343]
[1762723343733,0.08695148,104740.0,104730.0,0.92639824]
[1762723344030,0.001,104740.0,104730.0,0.92639824]
[1762723344937,0.01697973,104740.0,104730.0,0.92639824]
[1762723345639,0.08572796,104740.0,104730.0,0.92639824]
[1762723348142,0.10675796,104740.0,104730.0,0.92639824]
[1762723348536,0.10749063,104740.0,104730.0,0.92639824]
[1762723349442,0.14343063,104740.0,104730.0,0.92639824]
[1762723351640,0.14343063,104740.0,104730.0,0.56559824]
[1762723355449,0.14343063,104740.0,104730.0,0.48954343]
[1762723355649,0.14343063,104740.0,104730.0,0.56559824]
[1762723356448,0.0746824,104740.0,104730.0,0.55006513]
[1762723356748,0.16063388,104740.0,104730.0,0.55006513]
[1762723365355,0.1262229,104740.0,104730.0,0.56333513]
[1762723366561,0.1262229,104740.0,104730.0,0.54780236]
[1762723367254,0.14226996,104740.0,104730.0,0.54780236]
[1762723368359,0.14226996,104740.0,104730.0,0.90860236]
[1762723369361,0.12946996,104740.0,104730.0,0.90860236]
[1762723369860,0.19825247,104740.0,104730.0,0.90860236]
[1762723370056,0.11230099,104740.0,104730.0,0.90860236]
[1762723372262,0.12946996,104740.0,104730.0,0.90860236]
[1762723372760,0.04351848,104740.0,104730.0,0.90860236]
[1762723373763,0.04351848,104740.0,104730.0,1.05600236]
[1762723379865,0.12946996,104740.0,104730.0,1.05600236]
[1762723380360,0.01604706,104740.0,104730.0,1.08188024]
[1762723380567,0.05159566,104740.0,104730.0,1.05084024]
[1762723380759,0.06770992,104740.0,104730.0,1.05084024]
[1762723380955,0.09033259,104740.0,104730.0,1.05084024]
[1762723381262,0.09033259,104740.0,104730.0,1.00943047]
[1762723381263,0.15928841,104740.0,104730.0,1.00943047]
[1762723381667,0.25478461,104740.0,104730.0,0.94429507]
[1762723381852,0.16028841,104740.0,104730.0,0.04883803]
[1762723382166,1.33693638,104740.0,104730.0,0.003]
[1762723382464,1.2509849,104740.0,104730.0,0.00519803]
[1762723382666,1.2509849,104740.0,104730.0,0.14434343]
[1762723382960,1.2509849,104740.0,104730.0,0.22039824]
[1762723383166,1.1554887,104740.0,104730.0,0.22039824]
[1762723383368,1.1554887,104740.0,104730.0,0.58920824]
[1762723383369,0.26710184,104740.0,104730.0,0.58920824]
[1762723383866,0.14675007,104740.0,104730.0,0.58920824]
[1762723386257,0.10382007,104740.0,104730.0,0.58920824]
[1762723386463,0.14675007,104740.0,104730.0,0.58920824]
[1762723386664,0.16031007,104740.0,104730.0,0.58920824]
[1762723386866,0.16031007,104740.0,104730.0,0.68423599]
[1762723388068,0.14675007,104740.0,104730.0,0.68423599]
[1762723388955,0.16031007,104740.0,104730.0,0.67622599]
[1762723391268,0.16031007,104740.0,104730.0,0.67102796]
[1762723391469,0.16031007,104740.0,104730.0,0.80809244]
[1762723397077,0.10382007,104740.0,104730.0,0.81610244]
[1762723397574,0.12571007,104740.0,104730.0,0.81610244]
[1762723397776,0.14675007,104740.0,104730.0,0.81610244]
[1762723398161,0.16031007,104740.0,104730.0,0.81610244]
[1762723398366,0.16031007,104740.0,104730.0,0.80809244]
[1762723399077,0.16031007,104740.0,104730.0,0.63700988]
[1762723399377,0.16031007,104740.0,104730.0,0.80809244]
[1762723401281,0.16031007,104740.0,104730.0,0.79255889]
[1762723401481,0.16031007,104740.0,104730.0,0.81231889]
[1762723402279,0.07433693,104740.0,104730.0,0.81231889]
[1762723404378,0.1946887,104740.0,104730.0,0.81231889]
[1762723405980,0.16029572,104740.0,104730.0,0.81231889]
[1762723410083,0.16029572,104740.0,104730.0,0.45151889]
[1762723410276,0.16029572,104740.0,104730.0,0.81231889]
[1762723411386,0.07433693,104740.0,104730.0,0.81231889]
[1762723416295,0.16029572,104740.0,104730.0,0.81231889]
[1762723417795,0.25579202,104740.0,104730.0,0.81231889]
[1762723419091,0.16029572,104740.0,104730.0,0.81231889]
[1762723420892,0.16029572,104740.0,104730.0,0.79678538]
[1762723422298,0.1381987,104740.0,104730.0,0.79678538]
[1762723422502,0.1609387,104740.0,104730.0,0.79678538]
[1762723422796,0.1842487,104740.0,104730.0,0.79678538]
[1762723422996,0.06389693,104740.0,104730.0,0.79678538]
[1762723423196,0.07776693,104740.0,104730.0,0.79678538]
[1762723423402,0.1981187,104740.0,104730.0,0.79678538]
[1762723423903,0.07776693,104740.0,104730.0,0.79678538]
[1762723426303,0.1981187,104740.0,104730.0,0.79678538]
[1762723427101,0.07776693,104740.0,104730.0,0.79678538]
[1762723427497,0.1981187,104740.0,104730.0,0.79678538]
[1762723430906,0.1981187,104740.0,104730.0,0.78125202]
[1762723432106,0.28412874,104740.0,104730.0,0.78125202]
[1762723432399,0.16377697,104740.0,104730.0,0.78125202]
[1762723433205,0.07776693,104740.0,104730.0,0.78125202]
[1762723433506,0.1637722,104740.0,104730.0,0.78125202]
[1762723437306,0.1499022,104740.0,104730.0,0.78125202]
[1762723437508,0.06389693,104740.0,104730.0,0.78125202]
[1762723440413,0.07738693,104740.0,104730.0,0.78125202]
[1762723440607,0.1633922,104740.0,104730.0,0.78125202]
[1762723441719,0.1633922,104740.0,104730.0,0.76571873]
[1762723445917,0.07738693,104740.0,104730.0,0.76571873]
[1762723446919,0.07738693,104740.0,104730.0,0.59463617]
[1762723447112,0.07738693,104740.0,104730.0,0.67067151]
[1762723451616,0.1633922,104740.0,104730.0,0.67067151]
[1762723452322,0.07738693,104740.0,104730.0,0.67067151]
[1762723454223,0.1633922,104740.0,104730.0,0.67067151]
[1762723457920,0.14618897,104740.0,104730.0,0.67067151]
[1762723458328,0.07738693,104740.0,104730.0,0.67067151]
[1762723460625,0.14619347,104740.0,104730.0,0.67067151]
[1762723460832,0.07738693,104740.0,104730.0,0.67067151]
[1762723462029,0.07738693,104740.0,104730.0,0.59463617]
[1762723462223,0.1633922,104740.0,104730.0,0.67067151]
[1762723462418,0.6196884,104740.0,104730.0,0.13186638]
[1762723462618,0.1089994,104730.0,104720.0,0.0955145]
[1762723462823,0.1545045,104720.0,104710.0,0.572016]
[1762723463022,0.22551735,104720.0,104710.0,0.49598066]
[1762723463530,0.22551735,104720.0,104710.0,0.211216]
[1762723464033,0.58631735,104720.0,104710.0,0.211216]
[1762723464224,0.58631735,104720.0,104710.0,0.13818066]
[1762723464420,0.51750253,104720.0,104710.0,0.00314346]
[1762723464626,0.6035182,104720.0,104710.0,0.00314346]
[1762723464821,0.51850253,104720.0,104710.0,0.00514346]
[1762723465029,0.51850253,104720.0,104710.0,0.00314346]
[1762723466030,0.63874434,104720.0,104710.0,0.11842716]
[1762723466232,0.63874434,104720.0,104710.0,0.13818716]
[1762723466630,0.63874434,104720.0,104710.0,0.13618716]
[1762723466631,0.63774434,104720.0,104710.0,0.13618716]
[1762723466831,0.63974434,104720.0,104710.0,0.13518716]
[1762723467027,0.63974434,104720.0,104710.0,0.11542716]
[1762723467231,0.63974434,104720.0,104710.0,0.09566716]
[1762723467628,0.63974434,104720.0,104710.0,0.09666716]
[1762723467629,0.52350253,104720.0,104710.0,0.09666716]
[1762723468133,0.64357058,104720.0,104710.0,0.13618716]
[1762723469134,0.54805608,104720.0,104710.0,0.2122225]
[1762723470431,0.64357068,104720.0,104710.0,0.2122225]
[1762723470630,0.54805608,104720.0,104710.0,0.2122225]
[1762723470832,0.64357068,104720.0,104710.0,0.2122225]
[1762723471136,0.54805608,104720.0,104710.0,0.2122225]
[1762723471338,0.64357068,104720.0,104710.0,0.2122225]
[1762723471835,0.54805608,104720.0,104710.0,0.2122225]
[1762723472036,0.64357068,104720.0,104710.0,0.2122225]
[1762723472335,0.51367798,104720.0,104710.0,0.2122225]
[1762723472537,0.51367798,104720.0,104710.0,0.1966844]
[1762723473137,0.15287798,104720.0,104710.0,0.1966844]
[1762723476542,0.60919258,104720.0,104710.0,0.1966844]
[1762723476744,0.60919258,104720.0,104710.0,0.12064906]
[1762723477042,0.60919258,104720.0,104710.0,0.1966844]
[1762723478542,0.60919258,104720.0,104710.0,0.12064906]
[1762723478743,0.60919258,104720.0,104710.0,0.1769244]
[1762723478946,0.60919258,104720.0,104710.0,0.08112906]
[1762723479742,0.60919258,104720.0,104710.0,0.10088906]
[1762723480042,0.60919258,104720.0,104710.0,0.08112906]
[1762723482546,0.60919258,104720.0,104710.0,0.06559071]
[1762723483840,0.52350263,104720.0,104710.0,0.06559071]
[1762723484042,0.64357068,104720.0,104710.0,0.06559071]
[1762723487238,0.64357068,104720.0,104710.0,0.001]
[1762723489147,0.64357068,104720.0,104710.0,0.0965237]
[1762723490251,0.64357068,104720.0,104710.0,0.1162837]
[1762723490452,0.64357068,104720.0,104710.0,0.0965237]
[1762723490751,0.64357068,104720.0,104710.0,0.1360437]
[1762723492449,0.64357068,104720.0,104710.0,0.12050483]
[1762723493151,0.64357068,104720.0,104710.0,0.10074483]
[1762723494452,0.1524737,104710.0,104700.0,0.2112253]
[1762723494652,0.51547173,104710.0,104700.0,0.13518996]
[1762723494853,0.63553978,104710.0,104700.0,0.13518996]
[1762723495155,0.63553978,104710.0,104700.0,0.11542996]
[1762723495657,0.63553978,104710.0,104700.0,0.09567626]
[1762723495851,0.63653978,104710.0,104700.0,0.09567626]
[1762723496351,0.63653978,104710.0,104700.0,0.00014346]
[1762723496858,0.63853978,104710.0,104700.0,0.09667626]
[1762723497854,0.72455296,104710.0,104700.0,0.09667626]
[1762723498055,0.60448491,104710.0,104700.0,0.09667626]
[1762723498660,0.60448491,104710.0,104700.0,0.11643626]
[1762723504559,0.60448491,104710.0,104700.0,0.00114346]
[1762723504756,0.60448491,104710.0,104700.0,0.09667636]
[1762723505763,0.60448491,104710.0,104700.0,0.13619636]
[1762723506164,0.60448491,104710.0,104700.0,0.11643636]
[1762723507362,0.51847173,104710.0,104700.0,0.1008968]
[1762723508666,0.51847173,104710.0,104700.0,0.1206568]
[1762723508856,0.51847173,104710.0,104700.0,0.20627723]
[1762723510159,0.14815709,104710.0,104700.0,0.65269766]
[1762723510361,0.06214803,104710.0,104700.0,0.65269766]
[1762723510564,0.18221608,104710.0,104700.0,0.65269766]
[1762723517170,0.18221608,104710.0,104700.0,0.63715962]
[1762723519762,0.12526608,104710.0,104700.0,0.64371962]
[1762723520069,0.14795608,104710.0,104700.0,0.64371962]
[1762723520269,0.16989608,104710.0,104700.0,0.64371962]
[1762723520472,0.04982803,104710.0,104700.0,0.64371962]
[1762723520769,0.16989608,104710.0,104700.0,0.64371962]
[1762723521863,0.21123268,104710.0,104700.0,0.79111962]
[1762723522063,0.09116463,104710.0,104700.0,0.79111962]
[1762723523172,0.00519803,104710.0,104700.0,0.79111962]
[1762723523971,0.09116463,104710.0,104700.0,0.79111962]
[1762723524173,0.00519803,104710.0,104700.0,0.79111962]
[1762723524661,0.06274803,104710.0,104700.0,0.79111962]
[1762723524863,0.06274803,104710.0,104700.0,0.78455962]
[1762723525069,0.04982803,104710.0,104700.0,0.78455962]
[1762723526160,0.13579463,104710.0,104700.0,0.78455962]
[1762723527875,0.09116463,104710.0,104700.0,0.78455962]
[1762723529179,0.13497463,104710.0,104700.0,0.78455962]
[1762723532082,0.13497463,104710.0,104700.0,0.76902232]
[1762723536087,0.20373638,104710.0,104700.0,0.76902232]
[1762723536385,0.11776978,104710.0,104700.0,0.76902232]
[1762723541185,0.07395978,104710.0,104700.0,0.76902232]
[1762723541786,0.09583978,104710.0,104700.0,0.76902232]
[1762723542085,0.02707803,104710.0,104700.0,0.76902232]
[1762723545192,0.07862814,104710.0,104700.0,0.76902232]
[1762723547293,0.05674814,104710.0,104700.0,0.76902232]
[1762723547489,0.05455011,104710.0,104700.0,0.76902232]
[1762723547701,0.05455011,104710.0,104700.0,1.00778232]
[1762723549102,0.05455011,104710.0,104700.0,1.09340275]
[1762723549298,0.06876175,104720.0,104710.0,0.1416738]
[1762723549607,0.06876175,104720.0,104710.0,0.67371466]
[1762723549794,0.11366737,104730.0,104720.0,0.1350347]
[1762723549995,0.1295654,104730.0,104720.0,0.66707556]
[1762723550792,0.1158654,104730.0,104720.0,0.67363556]
[1762723551102,0.0934254,104730.0,104720.0,0.82103556]
[1762723551503,0.0944254,104730.0,104720.0,0.82103556]
[1762723552105,0.1305654,104730.0,104720.0,0.66707556]
[1762723552406,0.06180365,104730.0,104720.0,0.66707556]
[1762723552805,0.13047701,104730.0,104720.0,0.66707556]
[1762723553508,0.13046732,104730.0,104720.0,0.66707556]
[1762723559406,0.11676732,104730.0,104720.0,0.66707556]
[1762723560902,0.04810365,104730.0,104720.0,0.66707556]
[1762723561102,0.11676732,104730.0,104720.0,0.66707556]
[1762723561506,0.11676732,104730.0,104720.0,0.81447556]
[1762723561707,0.06975929,104730.0,104720.0,0.81447556]
[1762723561904,0.08477793,104740.0,104730.0,0.1415855]
[1762723562206,0.08477793,104740.0,104730.0,0.67362636]
[1762723562207,0.08697596,104740.0,104730.0,0.67362636]
[1762723562411,0.10969596,104740.0,104730.0,0.67362636]
[1762723562718,0.13202596,104740.0,104730.0,0.67362636]
[1762723563117,0.13302596,104740.0,104730.0,0.67562636]
[1762723564219,0.13302596,104740.0,104730.0,0.67662636]
[1762723565614,0.13082793,104740.0,104730.0,0.67662636]
[1762723565815,0.14639596,104740.0,104730.0,0.67662636]
[1762723567317,0.05842,104720.0,104710.0,0.54786346]
[1762723567613,0.60289933,104720.0,104710.0,0.08576389]
[1762723567813,0.05842,104700.0,104690.0,0.03952]
[1762723568013,0.21507372,104700.0,104690.0,0.48594043]
[1762723568215,0.12926379,104700.0,104690.0,0.58148253]
[1762723568408,0.12926379,104700.0,104690.0,0.66710296]
[1762723568817,0.12926379,104700.0,104690.0,0.5719611]
[1762723569217,0.12926379,104700.0,104690.0,0.5729611]
[1762723570122,0.13026379,104700.0,104690.0,0.5739611]
[1762723572227,0.06161803,104700.0,104690.0,0.5739611]
[1762723576025,0.13026379,104700.0,104690.0,0.5739611]
[1762723576528,0.06161803,104700.0,104690.0,0.5739611]
[1762723577327,0.11296996,104700.0,104690.0,0.5739611]
[1762723579124,0.11296996,104700.0,104690.0,0.7213611]
[1762723579427,0.11296996,104700.0,104690.0,0.6452621]
[1762723579619,0.11296996,104700.0,104690.0,0.7213611]
[1762723593238,0.06161803,104700.0,104690.0,0.7213611]
[1762723594334,0.13026379,104700.0,104690.0,0.7213611]
[1762723595438,0.001,104700.0,104690.0,0.7279911]
[1762723596034,0.06964576,104700.0,104690.0,0.7279911]
[1762723596227,0.001,104700.0,104690.0,0.7279911]
[1762723596840,0.06964576,104700.0,104690.0,0.7279911]
[1762723597635,0.08595339,104710.0,104700.0,0.095533]
[1762723597636,0.23790719,104710.0,104700.0,0.095533]
[1762723597828,0.05862803,104700.0,104690.0,0.6057361]
[1762723598942,0.05862803,104700.0,104690.0,0.6808351]
[1762723600546,0.05962803,104700.0,104690.0,0.6828351]
[1762723602458,0.14543796,104700.0,104690.0,0.6828351]
[1762723607761,0.14543796,104700.0,104690.0,0.66729688]
[1762723610953,0.05962803,104700.0,104690.0,0.66729688]
[1762723611261,0.12842959,104700.0,104690.0,0.66729688]
[1762723612354,0.05962803,104700.0,104690.0,0.66729688]
[1762723613563,0.00073267,104700.0,104690.0,0.69527491]
[1762723613865,0.04570267,104700.0,104690.0,0.69527491]
[1762723619166,0.00073267,104700.0,104690.0,0.69527491]
[1762723620355,0.07449244,104740.0,104700.0,0.1535029]
[1762723620563,0.15208457,104730.0,104720.0,0.02888263]
[1762723620760,0.15208457,104730.0,104720.0,0.39188066]
[1762723620960,0.15208457,104730.0,104720.0,0.48739536]
[1762723621667,0.05657267,104730.0,104720.0,0.48739536]
[1762723621963,0.05657267,104730.0,104720.0,0.50094536]
[1762723622164,0.15207827,104730.0,104720.0,0.50094536]
[1762723622467,0.06057267,104730.0,104720.0,0.50094536]
[1762723622659,0.06057267,104730.0,104720.0,0.48739536]
[1762723622860,0.06557267,104730.0,104720.0,0.46664367]
[1762723623160,0.06557267,104730.0,104720.0,0.48902367]
[1762723624661,0.05181267,104730.0,104720.0,0.56943267]
[1762723624857,0.05181267,104730.0,104720.0,0.49333367]
[1762723625053,0.05181267,104730.0,104720.0,0.56943267]
[1762723625962,0.16107827,104730.0,104720.0,0.49333367]
[1762723626163,0.15307827,104730.0,104720.0,0.48802367]
[1762723626370,0.05857267,104730.0,104720.0,0.48802367]
[1762723627270,0.15407827,104730.0,104720.0,0.48802367]
[1762723629472,0.24001389,104730.0,104720.0,0.48802367]
[1762723630467,0.24001389,104730.0,104720.0,0.47248749]
[1762723630668,0.24001389,104730.0,104720.0,0.49452749]
[1762723630870,0.24001389,104730.0,104720.0,0.58011297]
[1762723633873,0.14450829,104730.0,104720.0,0.58011297]
[1762723634574,0.14450829,104730.0,104720.0,0.58653297]
[1762723634779,0.10970829,104730.0,104720.0,0.58653297]
[1762723635166,0.13074829,104730.0,104720.0,0.58653297]
[1762723638274,0.08793562,104730.0,104720.0,0.58653297]
[1762723638576,0.08793562,104730.0,104720.0,0.67211845]
[1762723640378,0.002,104730.0,104720.0,0.67211845]
[1762723641279,0.07072266,104730.0,104720.0,0.67211845]
[1762723641580,0.08793562,104730.0,104720.0,0.65658401]
[1762723642172,0.002,104730.0,104720.0,0.65658401]
[1762723643183,0.07069705,104730.0,104720.0,0.65658401]
[1762723643580,0.07069705,104730.0,104720.0,0.80398401]
[1762723644283,0.07142972,104730.0,104720.0,0.80398401]
[1762723649582,0.07069705,104730.0,104720.0,0.80398401]
[1762723652383,0.03569705,104730.0,104720.0,0.80398401]
[1762723658480,0.10023255,104740.0,104720.0,0.80398401]
[1762723658787,0.01429693,104740.0,104730.0,0.67810656]
[1762723658987,0.0383496,104740.0,104730.0,0.82770459]
[1762723659595,0.0829596,104740.0,104730.0,0.82770459]
[1762723659787,0.0859596,104740.0,104730.0,0.82770459]
[1762723659983,0.0859596,104740.0,104730.0,0.82870459]
[1762723661095,0.0859596,104740.0,104730.0,0.65753363]
[1762723661292,0.0859596,104740.0,104730.0,0.82870459]
[1762723661693,0.0829596,104740.0,104730.0,0.82870459]
[1762723661895,0.0839596,104740.0,104730.0,0.83070459]
[1762723663194,0.0160296,104740.0,104730.0,0.8151715]
[1762723663394,0.01529693,104740.0,104730.0,0.8151715]
[1762723663588,0.03181693,104740.0,104730.0,0.8151715]
[1762723664287,0.05513693,104740.0,104730.0,0.8151715]
[1762723664889,0.08322693,104740.0,104730.0,0.8151715]
[1762723665894,0.0839596,104740.0,104730.0,0.8151715]
[1762723668494,0.1526794,104740.0,104730.0,0.8151715]
[1762723673602,0.0839596,104740.0,104730.0,0.8151715]
[1762723674692,0.0839596,104740.0,104730.0,0.79963919]
[1762723675199,0.0558696,104740.0,104730.0,0.79963919]
[1762723675605,0.14180522,104740.0,104730.0,0.79963919]
[1762723676202,0.16813522,104740.0,104730.0,0.79963919]
[1762723676501,0.14180522,104740.0,104730.0,0.79963919]
[1762723676899,0.16963522,104740.0,104730.0,0.79963919]
[1762723677898,0.0836996,104740.0,104730.0,0.79963919]
[1762723678202,0.16963522,104740.0,104730.0,0.79963919]
[1762723679308,0.15246021,104740.0,104730.0,0.79963919]
[1762723680107,0.0836996,104740.0,104730.0,0.79963919]
[1762723680812,0.16963522,104740.0,104730.0,0.79963919]
[1762723681403,0.15246533,104740.0,104730.0,0.79963919]
[1762723691303,0.16963522,104740.0,104730.0,0.78410664]
[1762723693015,0.16963522,104740.0,104730.0,0.68897683]
[1762723694218,0.0836996,104740.0,104730.0,0.68897683]
[1762723695210,0.26513162,104740.0,104730.0,0.3638]
[1762723695411,0.29951205,104740.0,104730.0,0.3638]
[1762723695811,0.29951205,104740.0,104730.0,0.46150363]
[1762723696918,0.20401565,104740.0,104730.0,0.53754478]
[1762723699911,0.20401565,104740.0,104730.0,0.46150363]
[1762723700112,0.20401565,104740.0,104730.0,0.53754478]
[1762723701323,0.20401565,104740.0,104730.0,0.52201035]
[1762723702016,0.0836996,104740.0,104730.0,0.52201035]
[1762723702615,0.20401565,104740.0,104730.0,0.52201035]
[1762723705415,0.15245088,104740.0,104730.0,0.52201035]
[1762723707525,0.0836996,104740.0,104730.0,0.52201035]
[1762723707719,0.15245521,104740.0,104730.0,0.52201035]
[1762723707922,0.0836996,104740.0,104730.0,0.52201035]
[1762723709914,0.15245894,104740.0,104730.0,0.52201035]
[1762723711226,0.15245894,104740.0,104730.0,0.66941035]
[1762723713529,0.20401565,104740.0,104730.0,0.6538769]
[1762723715430,0.2899719,104740.0,104730.0,0.6538769]
[1762723715729,0.16965585,104740.0,104730.0,0.6538769]
[1762723717030,0.16965585,104740.0,104730.0,0.5064769]
[1762723723439,0.16965585,104740.0,104730.0,0.49094345]
[1762723724343,0.1791961,104740.0,104730.0,0.49094345]
[1762723725647,0.26515235,104740.0,104730.0,0.49094345]
[1762723729746,0.16965585,104740.0,104730.0,0.49094345]
[1762723734150,0.0836996,104740.0,104730.0,0.47540932]
[1762723734652,0.20401565,104740.0,104730.0,0.47540932]
[1762723735453,0.29951215,104740.0,104730.0,0.47540932]
[1762723736948,0.20401565,104740.0,104730.0,0.47540932]
[1762723744257,0.20401565,104740.0,104730.0,0.4598756]
[1762723748863,0.0836996,104740.0,104730.0,0.4598756]
[1762723749467,0.0325496,104740.0,104730.0,0.4598756]
[1762723749767,0.11855151,104740.0,104730.0,0.4598756]
[1762723750567,0.14099151,104740.0,104730.0,0.4598756]
[1762723752269,0.16422151,104740.0,104730.0,0.6072756]
[1762723752867,0.16422151,104740.0,104730.0,0.70231473]
[1762723753665,0.0782196,104740.0,104730.0,0.70231473]
[1762723754862,0.0325496,104740.0,104730.0,0.70231473]
[1762723755066,0.11855151,104740.0,104730.0,0.68678192]
[1762723755359,0.16422151,104740.0,104730.0,0.68678192]
[1762723756667,0.11855151,104740.0,104730.0,0.68678192]
[1762723757165,0.16422151,104740.0,104730.0,0.68678192]
[1762723759163,0.0782196,104740.0,104730.0,0.68678192]
[1762723760773,0.0549896,104740.0,104730.0,0.68678192]
[1762723760968,0.0782196,104740.0,104730.0,0.68678192]
[1762723763478,0.0549896,104740.0,104730.0,0.68678192]
[1762723763680,0.0325496,104740.0,104730.0,0.68678192]
[1762723763873,0.10130206,104740.0,104730.0,0.68678192]
[1762723764074,0.12374206,104740.0,104730.0,0.68678192]
[1762723764276,0.0549896,104740.0,104730.0,0.68678192]
[1762723764580,0.14697271,104740.0,104730.0,0.68678192]
[1762723764779,0.0782196,104740.0,104730.0,0.68678192]
[1762723766577,0.0767396,104740.0,104730.0,0.68678192]
[1762723768783,0.14550025,104740.0,104730.0,0.67124956]
[1762723768985,0.0325496,104740.0,104730.0,0.67124956]
[1762723769174,0.12419917,104740.0,104730.0,0.67124956]
[1762723769374,0.08478917,104740.0,104730.0,0.67124956]
[1762723770888,0.14262917,104740.0,104730.0,0.67124956]
[1762723771492,0.12087917,104740.0,104730.0,0.67124956]
[1762723773189,0.14262917,104740.0,104730.0,0.67124956]
[1762723773380,0.0738696,104740.0,104730.0,0.67124956]
[1762723774790,0.0738696,104740.0,104730.0,0.50016928]
[1762723774991,0.0738696,104740.0,104730.0,0.67124956]
[1762723778696,0.15987151,104740.0,104730.0,0.67124956]
[1762723778893,0.15987151,104740.0,104730.0,0.65571741]
[1762723779497,0.0738696,104740.0,104730.0,0.65571741]
[1762723782797,0.15987151,104740.0,104730.0,0.65571741]
[1762723782996,0.0738696,104740.0,104730.0,0.65571741]
[1762723785898,0.15987151,104740.0,104730.0,0.65571741]
[1762723786098,0.0738696,104740.0,104730.0,0.65571741]
[1762723786400,0.15987151,104740.0,104730.0,0.65571741]
[1762723788089,0.0738696,104740.0,104730.0,0.65571741]
[1762723789597,0.0521196,104740.0,104730.0,0.65571741]
[1762723789795,0.0738796,104740.0,104730.0,0.65571741]
[1762723792497,0.15988151,104740.0,104730.0,0.65571741]
[1762723792900,0.0738796,104740.0,104730.0,0.65571741]
[1762723793603,0.14267454,104740.0,104730.0,0.65571741]
[1762723798605,0.14267454,104740.0,104730.0,1.14078391]
[1762723799009,0.12091454,104740.0,104730.0,1.14078391]
[1762723799310,0.14323454,104740.0,104730.0,1.14078391]
[1762723801911,0.0744396,104740.0,104730.0,1.14078391]
[1762723802410,0.12599194,104740.0,104730.0,1.14078391]
[1762723811613,0.0744396,104740.0,104730.0,1.14078391]
[1762723811815,0.14323454,104740.0,104730.0,1.14078391]
[1762723812914,0.14323454,104740.0,104730.0,1.04573312]
[1762723814914,0.14323454,104740.0,104730.0,1.03020159]
[1762723816917,0.14323454,104740.0,104730.0,0.9541721]
[1762723817217,0.14323454,104740.0,104730.0,1.03020159]
[1762723820117,0.0744396,104740.0,104730.0,1.03020159]
[1762723820619,0.16044151,104740.0,104730.0,1.03020159]
[1762723821106,0.0744396,104740.0,104730.0,1.03020159]
[1762723821415,0.16044151,104740.0,104730.0,1.03020159]
[1762723822118,0.0744396,104740.0,104730.0,1.03020159]
[1762723825222,0.16044151,104740.0,104730.0,1.03020159]
[1762723826228,0.0744396,104740.0,104730.0,1.03020159]
[1762723831332,0.14319343,104740.0,104730.0,1.03020159]
[1762723831831,0.0744396,104740.0,104730.0,1.03020159]
[1762723835135,0.16044151,104740.0,104730.0,1.01466929]
[1762723844535,0.0744396,104740.0,104730.0,1.01466929]
[1762723845035,0.0744396,104740.0,104730.0,0.99913702]
[1762723846032,0.0744396,104740.0,104730.0,0.869]
[1762723846335,0.25591071,104740.0,104730.0,0.7216]
[1762723847235,0.25591071,104740.0,104730.0,0.8171057]
[1762723847546,0.1083557,104730.0,104720.0,0.3608]
[1762723847727,0.24038824,104730.0,104720.0,0.35934272]
[1762723848038,0.1522248,104720.0,104710.0,0.45646646]
[1762723848332,0.24039734,104720.0,104710.0,0.36094346]
[1762723849028,0.24039734,104720.0,104710.0,0.45646736]
[1762723849423,0.24039734,104720.0,104710.0,0.47827736]
[1762723849627,0.24039734,104720.0,104710.0,0.45646736]
[1762723851138,0.24039734,104720.0,104710.0,0.36094346]
[1762723851339,0.24039734,104720.0,104710.0,0.45746746]
[1762723851643,0.24039734,104720.0,104710.0,0.47927746]
[1762723852336,0.30907929,104720.0,104710.0,0.47927746]
[1762723852542,0.22310478,104720.0,104710.0,0.47927746]
[1762723852839,0.24039734,104720.0,104710.0,0.50137746]
[1762723853039,0.15442283,104720.0,104710.0,0.50137746]
[1762723853542,0.12757933,104720.0,104710.0,0.50137746]
[1762723854144,0.22309413,104720.0,104710.0,0.50137746]
[1762723854535,0.12757933,104720.0,104710.0,0.50137746]
[1762723855338,0.12757933,104720.0,104710.0,0.49935064]
[1762723855538,0.11472933,104720.0,104710.0,0.57538013]
[1762723855739,0.04605803,104720.0,104710.0,0.57538013]
[1762723855939,0.09754658,104720.0,104710.0,0.57538013]
[1762723856835,0.04605803,104720.0,104710.0,0.57538013]
[1762723857034,0.09754536,104720.0,104710.0,0.57538013]
[1762723857235,0.04605803,104720.0,104710.0,0.57538013]
[1762723857439,0.09754394,104720.0,104710.0,0.57538013]
[1762723858634,0.11472933,104720.0,104710.0,0.57538013]
[1762723859143,0.09754298,104720.0,104710.0,0.57538013]
[1762723859442,0.11472933,104720.0,104710.0,0.57538013]
[1762723859644,0.07086933,104720.0,104710.0,0.57538013]
[1762723861041,0.11532933,104720.0,104710.0,0.57538013]
[1762723861541,0.09312933,104720.0,104710.0,0.57538013]
[1762723861742,0.07086933,104720.0,104710.0,0.57538013]
[1762723864540,0.09312933,104720.0,104710.0,0.57538013]
[1762723864943,0.07086933,104720.0,104710.0,0.57538013]
[1762723865751,0.00219803,104720.0,104710.0,0.57538013]
[1762723867344,0.07086933,104720.0,104710.0,0.57538013]
[1762723872350,0.00219803,104720.0,104710.0,0.57538013]
[1762723872549,0.0686713,104730.0,104720.0,0.1532848]
[1762723872752,0.07086933,104730.0,104720.0,0.66614378]
[1762723872956,0.07086933,104730.0,104720.0,0.81354378]
[1762723873649,0.0336713,104730.0,104720.0,0.81354378]
[1762723874851,0.0346713,104730.0,104720.0,0.83256796]
[1762723875045,0.0366713,104730.0,104720.0,0.83356796]
[1762723875750,0.001,104730.0,104720.0,0.83256796]
[1762723875953,0.01429693,104740.0,104730.0,0.1401657]
[1762723876250,0.01649496,104740.0,104730.0,0.67204886]
[1762723878157,0.01749496,104740.0,104730.0,0.67204886]
[1762723878358,0.01949496,104740.0,104730.0,0.67304886]
[1762723879452,0.01649496,104740.0,104730.0,0.67304886]
[1762723879754,0.01649496,104740.0,104730.0,0.67404886]
[1762723880549,0.07425496,104740.0,104730.0,0.67404886]
[1762723880752,0.07425496,104740.0,104730.0,0.5029656]
[1762723881057,0.16022947,104740.0,104730.0,0.57297443]
[1762723881959,0.16022947,104740.0,104730.0,0.48743285]
[1762723882152,0.16022947,104740.0,104730.0,0.57297443]
[1762723882753,0.25572597,104740.0,104730.0,0.45423883]
[1762723883054,0.07425496,104740.0,104730.0,0.56543443]